bitfinex/quotes_SOLUSD_20220101
["timestamp","ask_amount","ask_price","bid_price","bid_amount"]
[1641000024174,2.62308767,173.43,173.4,10.33539368]
[1641000024587,1.2771,173.51,173.4,10.33539368]
[1641000025388,1.2771,173.51,173.4,11.55729368]
[1641000028089,3.610495,173.51,173.4,11.55729368]
[1641000029291,3.610495,173.51,173.4,11.29729368]
[1641000030293,2.333395,173.51,173.4,11.29729368]
[1641000030490,2.333395,173.51,173.4,11.55729368]
[1641000034600,2.333395,173.51,173.4,11.29729368]
[1641000034894,29.70755788,173.51,173.4,11.29729368]
[1641000035798,2.333395,173.51,173.4,11.29729368]
[1641000035995,2.333395,173.51,173.4,11.55729368]
[1641000037995,1.3314,173.53,173.4,11.55729368]
[1641000039296,3.664795,173.53,173.4,11.55729368]
[1641000041603,2.333395,173.53,173.4,11.55729368]
[1641000041806,2.333395,173.53,173.4,26.98295863]
[1641000042003,2.333395,173.53,173.41,10.25525605]
[1641000042201,2.333395,173.53,173.47,8.6416]
[1641000042406,2.333395,173.53,173.47,15.1606]
[1641000042604,0.03791311,173.57,173.48,101.70184068]
[1641000042805,0.03791311,173.57,173.48,43.12853436]
[1641000043039,0.03791311,173.57,173.49,1.42669368]
[1641000043205,0.03791311,173.57,173.53,8.6414]
[1641000043405,0.03791311,173.57,173.53,13.5074]
[1641000043608,0.03791311,173.57,173.53,13.7674]
[1641000043805,0.03791311,173.57,173.54,1.42669368]
[1641000044005,0.03791311,173.57,173.55,3.03219997]
[1641000044406,0.03791311,173.57,173.56,24.68700615]
[1641000044706,79.3055,173.63,173.56,24.94700615]
[1641000044909,29.37649688,173.65,173.56,0.26]
[1641000045306,29.87649688,173.65,173.55,3.29219997]
[1641000045505,38.51919688,173.65,173.57,8.6421]
[1641000046107,38.51919688,173.65,173.55,3.03219997]
[1641000046611,38.51919688,173.65,173.58,8.6412]
[1641000047008,38.51919688,173.65,173.55,3.03219997]
[1641000047210,40.85259188,173.65,173.55,3.29219997]
[1641000047609,42.46069332,173.65,173.55,3.29219997]
[1641000047808,41.11259188,173.65,173.55,3.03219997]
[1641000048210,42.46069332,173.65,173.55,3.03219997]
[1641000048411,42.20069332,173.65,173.55,3.03219997]
[1641000048613,40.85259188,173.65,173.55,3.03219997]
[1641000050117,40.85259188,173.65,173.55,3.29219997]
[1641000050318,32.20989188,173.65,173.55,3.29219997]
[1641000050744,32.20989188,173.65,173.55,11.93449997]
[1641000050943,32.20989188,173.65,173.55,3.29219997]
[1641000051548,32.46989188,173.65,173.55,3.29219997]
[1641000052744,41.11159188,173.65,173.55,3.29219997]
[1641000054844,41.11159188,173.65,173.52,8.6435]
[1641000055047,41.11159188,173.65,173.47,28.8128]
[1641000055346,8.6452,173.59,173.42,1.2988]
[1641000055545,8.6452,173.59,173.43,5.97061178]
[1641000055746,8.6452,173.59,173.47,26.80448838]
[1641000055946,73.2762,173.64,173.47,26.80448838]
[1641000056146,1.235,173.63,173.47,26.80448838]
[1641000056345,1.735,173.63,173.47,27.06448838]
[1641000056548,1.235,173.63,173.47,27.06448838]
[1641000056947,29.49302871,173.62,173.52,8.644]
[1641000057347,29.49302871,173.62,173.52,8.904]
[1641000058554,29.49302871,173.62,173.48,28.8125]
[1641000058752,29.99302871,173.62,173.48,28.8125]
[1641000059156,38.89752871,173.62,173.48,28.8125]
[1641000059352,38.63752871,173.62,173.48,28.8125]
[1641000059555,29.49302871,173.62,173.5,28.8102]
[1641000059753,29.49302871,173.62,173.54,8.6431]
[1641000059957,73.2762,173.64,173.54,8.6431]
[1641000060360,73.2762,173.64,173.54,8.9031]
[1641000060555,73.2762,173.64,173.54,8.4031]
[1641000060756,97.03743202,173.64,173.54,8.4031]
[1641000060957,73.2762,173.64,173.54,8.4031]
[1641000063156,73.7762,173.64,173.54,8.4031]
[1641000063557,73.2762,173.64,173.54,8.4031]
[1641000064960,73.2762,173.64,173.54,7.9031]
[1641000066766,73.2762,173.64,173.54,7.6431]
[1641000068279,73.2762,173.64,173.54,7.9031]
[1641000069077,73.2762,173.64,173.54,7.6431]
[1641000069499,75.609595,173.64,173.54,7.6431]
[1641000069896,75.609595,173.64,173.54,34.03034569]
[1641000070399,75.609595,173.64,173.54,7.9031]
[1641000070797,76.109595,173.64,173.52,8.644]
[1641000071398,76.109595,173.64,173.48,25.98989553]
[1641000071598,76.369595,173.64,173.48,25.98989553]
[1641000072098,84.512895,173.64,173.51,8.6447]
[1641000072299,85.012895,173.64,173.51,8.6447]
[1641000072499,85.012895,173.64,173.51,8.9047]
[1641000072699,85.012895,173.64,173.51,8.6447]
[1641000073499,85.012895,173.64,173.52,23.0396977]
[1641000073703,85.012895,173.64,173.52,31.6837977]
[1641000074002,85.012895,173.64,173.52,8.6441]
[1641000074200,85.012895,173.64,173.48,28.8137]
[1641000074802,84.512895,173.64,173.51,8.6447]
[1641000075001,24.43959572,173.62,173.51,8.6447]
[1641000075600,1.2355,173.63,173.51,8.9047]
[1641000078008,1.2355,173.63,173.51,10.33139368]
[1641000078504,1.4955,173.63,173.51,10.07139368]
[1641000078704,1.9955,173.63,173.51,8.6447]
[1641000079105,10.6393,173.63,173.51,8.6447]
[1641000079806,10.3793,173.63,173.51,8.9047]
[1641000080007,1.2355,173.63,173.51,8.9047]
[1641000080713,1.2355,173.63,173.51,11.60469368]
[1641000081911,1.7355,173.63,173.51,11.60469368]
[1641000082109,10.3788,173.63,173.51,10.07139368]
[1641000082310,9.8788,173.63,173.51,8.6447]
[1641000082512,10.1388,173.63,173.51,8.6447]
[1641000083211,10.3788,173.63,173.51,8.6447]
[1641000083412,10.3788,173.63,173.51,8.9047]
[1641000084011,10.6388,173.63,173.51,8.6447]
[1641000084614,30.3990128,173.62,173.51,8.6447]
[1641000084815,8.6443,173.6,173.51,8.6447]
[1641000085016,8.9043,173.6,173.51,8.6447]
[1641000085217,9.1443,173.6,173.51,8.6447]
[1641000085820,9.4043,173.6,173.51,8.6447]
[1641000086518,9.4043,173.6,173.51,8.9047]
[1641000086718,9.4043,173.6,173.51,8.6447]
[1641000088118,0.5,173.6,173.51,8.9047]
[1641000088321,2.333395,173.6,173.51,8.9047]
[1641000088522,2.333395,173.6,173.51,10.1654]
[1641000089920,2.333395,173.6,173.51,8.6447]
[1641000090126,2.833395,173.6,173.51,8.6447]
[1641000090321,2.833395,173.6,173.5,25.10837072]
[1641000090523,3.093395,173.6,173.5,25.10837072]
[1641000090929,8.6143,173.85,173.81,16.4090645]
[1641000091124,0.17,174.06,173.85,18.03268286]
[1641000091421,30.20688559,174.15,173.87,10.0]
[1641000091422,44.93128013,174.12,173.87,10.0]
[1641000091624,44.93128013,174.12,174.01,0.50949819]
[1641000091821,2.333395,174.06,174.01,5.54949819]
[1641000092022,2.333395,174.06,173.97,5.994]
[1641000092225,2.333395,174.06,173.97,6.754]
[1641000092425,9.5e-05,174.06,174.0,8.6189]
[1641000092624,13.05226846,174.08,174.0,8.6189]
[1641000092823,13.05226846,174.08,174.0,9.3789]
[1641000093023,29.27096332,174.1,174.0,9.3789]
[1641000093226,29.07097682,174.1,174.0,8.6189]
[1641000093428,29.07097682,174.1,174.01,1.42669368]
[1641000093626,29.07097682,174.1,174.02,8.6182]
[1641000093829,29.07097682,174.1,174.01,7.16069368]
[1641000094026,29.07097682,174.1,174.01,6.234]
[1641000094227,29.07097682,174.1,174.01,5.734]
[1641000094427,29.07097682,174.1,174.01,6.234]
[1641000094627,29.07097682,174.1,174.01,34.4543]
[1641000094828,29.07097682,174.1,174.01,44.38228015]
[1641000095028,29.07097682,174.1,174.01,36.38099368]
[1641000095237,29.07097682,174.1,174.05,8.6166]
[1641000095731,29.07097682,174.1,174.01,0.26]
[1641000095932,29.07097682,174.1,174.01,10.0]
[1641000096130,31.40437182,174.1,173.98,28.7264]
[1641000096331,31.40437182,174.1,173.97,8.6185]
[1641000096829,31.90437182,174.1,173.92,28.7369]
[1641000097229,31.40437182,174.1,173.92,0.5]
[1641000097430,31.66437182,174.1,173.99,8.6197]
[1641000098031,31.40437182,174.1,173.99,8.6197]
[1641000098630,1.2465,174.26,173.99,8.6197]
[1641000098835,1.2465,174.26,173.99,9.1197]
[1641000099036,1.2465,174.26,173.99,9.3797]
[1641000099234,64.9721,174.29,173.99,10.80639368]
[1641000099435,64.9721,174.29,174.0,6.45725429]
[1641000099636,30.18994343,174.28,174.13,8.613]
[1641000100038,30.18994343,174.28,174.01,12.77440517]
[1641000100334,30.18994343,174.28,174.01,13.53440517]
[1641000100536,30.18994343,174.28,174.02,1.42669368]
[1641000100736,30.18994343,174.28,174.11,8.614]
[1641000100939,30.68994343,174.28,174.11,8.614]
[1641000101136,39.30484343,174.28,174.06,28.7148]
[1641000101537,39.30484343,174.28,174.06,28.9748]
[1641000101738,39.30484343,174.28,174.07,6.89377]
[1641000101942,0.31269665,174.27,173.99,1.42669368]
[1641000102140,0.31269665,174.27,173.95,1.3354]
[1641000102341,30.13513205,174.16,173.97,28.7297]
[1641000102545,30.39513205,174.16,173.97,28.7297]
[1641000102740,30.89513205,174.16,173.95,1.8354]
[1641000103163,30.13513205,174.16,173.95,3.26209368]
[1641000103463,30.13513205,174.16,173.95,9.71934797]
[1641000104062,30.13513205,174.16,173.95,9.97934797]
[1641000104461,30.13513205,174.16,174.06,8.6168]
[1641000107473,30.13513205,174.16,174.06,8.8768]
[1641000107673,30.13513205,174.16,174.06,8.6168]
[1641000107873,24.33712969,174.29,174.06,8.6168]
[1641000108075,24.83712969,174.29,174.06,8.6168]
[1641000108475,31.8498507,174.29,174.07,29.2]
[1641000108678,32.3498507,174.29,174.08,8.6159]
[1641000108874,34.9432457,174.29,174.08,8.6159]
[1641000109076,8.6164,174.19,174.04,28.719]
[1641000109277,8.6164,174.19,174.01,28.7245]
[1641000109278,23.1281225,174.18,174.01,28.7245]
[1641000109479,23.3881225,174.18,173.95,75.48499368]
[1641000109679,23.3881225,174.18,173.95,2.76209368]
[1641000110282,28.7335,174.16,173.97,28.7321]
[1641000110476,23.8881225,174.18,173.95,1.3354]
[1641000110677,17.17817677,174.18,173.95,1.8354]
[1641000110877,17.17817677,174.18,174.05,8.6178]
[1641000111283,28.73727493,174.14,173.95,1.8354]
[1641000111481,29.23727493,174.14,173.95,2.0954]
[1641000111778,28.44023735,174.14,173.95,1.5954]
[1641000111978,27.94023735,174.14,173.96,1.42669368]
[1641000112176,23.27012136,174.25,173.96,1.42669368]
[1641000112378,23.77012136,174.25,173.95,1.3354]
[1641000112577,23.77012136,174.25,173.99,28.729]
[1641000112578,8.6195,174.16,173.99,28.729]
[1641000112779,24.3022558,174.15,174.02,8.6195]
[1641000112979,25.0622558,174.15,174.02,8.6195]
[1641000113378,25.0622558,174.15,173.91,1.42669368]
[1641000113579,25.0622558,174.15,173.96,26.2334]
[1641000113978,25.0622558,174.15,174.01,8.6199]
[1641000114580,24.5622558,174.15,174.01,8.6199]
[1641000115084,27.9293298,174.19,174.07,8.6171]
[1641000115380,25.79524155,174.25,174.0,0.26]
[1641000115581,25.79524155,174.25,173.96,74.4506]
[1641000115780,34.41104155,174.25,173.97,6.84526419]
[1641000115981,34.41104155,174.25,173.97,9.03195787]
[1641000116181,34.41104155,174.25,173.98,1.42669368]
[1641000116382,34.91104155,174.25,173.98,8.77195787]
[1641000116580,34.91104155,174.25,173.99,6.84526419]
[1641000116779,34.91104155,174.25,173.99,8.27195787]
[1641000116979,30.79379003,174.25,173.99,9.03195787]
[1641000117179,30.79379003,174.25,174.0,6.84526419]
[1641000117380,30.79379003,174.25,174.0,7.34526419]
[1641000117579,31.05379003,174.25,174.11,8.6152]
[1641000118180,30.79379003,174.25,174.11,8.6152]
[1641000118582,11.167195,174.29,174.11,8.6152]
[1641000118583,28.46189368,174.28,174.11,8.6152]
[1641000119285,8.6148,174.25,174.11,8.6152]
[1641000119490,28.46189368,174.28,174.11,8.6152]
[1641000119691,19.592907,174.27,174.11,15.50739]
[1641000120088,19.592907,174.27,174.11,17.19408368]
[1641000120289,19.592907,174.27,174.11,17.69408368]
[1641000120487,19.592907,174.27,174.11,16.26739]
[1641000121495,35.10635482,174.28,174.11,16.26739]
[1641000121915,35.10635482,174.28,174.11,52.31265419]
[1641000122114,6.530969,174.27,174.2,6.109]
[1641000123817,6.530969,174.28,174.2,6.109]
[1641000124020,6.530969,174.28,174.2,12.99763]
[1641000124219,6.790969,174.28,174.2,12.99763]
[1641000124818,0.26,174.28,174.2,12.99763]
[1641000125026,2.593395,174.29,174.2,12.99763]
[1641000125620,2.593395,174.29,174.2,6.109]
[1641000126121,30.0199012,174.28,174.18,8.6116]
[1641000126523,6.527273,174.27,174.18,8.6116]
[1641000127022,6.787273,174.27,174.18,8.6116]
[1641000127922,6.527273,174.26,174.18,8.6116]
[1641000128122,6.527273,174.26,174.18,9.3716]
[1641000128525,6.527273,174.28,174.18,9.3716]
[1641000128924,6.527273,174.28,174.18,8.8716]
[1641000129127,6.527273,174.28,174.18,15.4626]
[1641000129325,6.527273,174.28,174.18,15.7226]
[1641000130130,2.333395,174.29,174.18,9.3716]
[1641000130929,2.333395,174.29,174.18,8.6116]
[1641000131529,2.333395,174.29,174.18,9.1116]
[1641000132330,2.333395,174.29,174.18,9.3716]
[1641000133031,2.333395,174.29,174.18,8.6116]
[1641000133830,2.833395,174.29,174.18,8.6116]
[1641000134232,3.093395,174.29,174.18,8.6116]
[1641000134431,6.52793288,174.28,174.18,8.6116]
[1641000134633,23.62905031,174.27,174.18,8.6116]
[1641000135033,23.62905031,174.27,174.18,8.8716]
[1641000135233,6.52793288,174.26,174.18,8.8716]
[1641000135833,6.52793288,174.26,174.18,8.6116]
[1641000137638,23.62905031,174.27,174.18,8.6116]
[1641000137837,23.62905031,174.27,174.18,9.3716]
[1641000141547,2.333395,174.29,174.18,9.3716]
[1641000141944,2.333395,174.29,174.18,7.62160001]
[1641000143146,27.30491921,174.28,174.18,7.62160001]
[1641000143342,33.83239035,174.28,174.18,7.62160001]
[1641000143542,34.09239035,174.28,174.18,0.00160001]
[1641000143744,34.09239035,174.28,174.12,2.6598]
[1641000143942,6.52747114,174.27,174.12,2.6598]
[1641000144342,7.28747114,174.27,174.12,2.6598]
[1641000144545,7.28747114,174.27,174.09,72.9433]
[1641000144742,28.7128,174.25,174.12,8.6134]
[1641000144943,31.3777571,174.24,174.12,9.1134]
[1641000145144,31.3777571,174.24,174.12,8.6134]
[1641000145343,8.613,174.22,174.12,8.6134]
[1641000145747,31.6377571,174.24,174.12,8.6134]
[1641000146145,31.6377571,174.24,174.12,8.8734]
[1641000146948,40.2497571,174.24,174.12,8.8734]
[1641000147351,40.2497571,174.24,174.12,8.6134]
[1641000148875,15.14137682,174.23,174.12,9.1134]
[1641000149274,6.52897682,174.23,174.12,9.3734]
[1641000149475,31.6377571,174.24,174.12,9.3734]
[1641000150173,40.2497571,174.24,174.12,9.3734]
[1641000150975,31.6377571,174.24,174.12,9.3734]
[1641000151175,31.6377571,174.24,174.12,8.8734]
[1641000152280,31.6377571,174.24,174.12,9.3734]
[1641000152677,0.26,174.24,174.12,9.3734]
[1641000152878,7.22972576,174.29,174.12,9.3734]
[1641000153277,7.22972576,174.29,174.12,16.14644197]
[1641000153477,7.22972576,174.29,174.12,17.57313565]
[1641000153776,6.5277919,174.28,174.12,17.57313565]
[1641000153979,28.66659498,174.27,174.12,16.14644197]
[1641000154378,6.5277919,174.28,174.12,16.14644197]
[1641000154781,6.5277919,174.28,174.12,27.48675455]
[1641000155277,6.5277919,174.28,174.17,38.23219472]
[1641000155479,6.5277919,174.28,174.17,18.16749472]
[1641000156283,6.5277919,174.28,174.22,8.6093]
[1641000156480,6.5277919,174.28,174.17,8.374]
[1641000156684,6.5277919,174.28,174.17,7.874]
[1641000156889,6.7877919,174.28,174.17,7.874]
[1641000157181,31.20082299,174.27,174.17,7.874]
[1641000157386,8.612,174.24,174.17,7.874]
[1641000157582,31.35764413,174.23,174.17,7.874]
[1641000158083,31.61764413,174.23,174.17,7.874]
[1641000158885,6.5277919,174.22,174.17,7.874]
[1641000159084,6.7877919,174.22,174.17,7.874]
[1641000159286,0.26,174.22,174.17,7.874]
[1641000159685,31.35764413,174.23,174.17,7.874]
[1641000160688,39.97004413,174.23,174.17,7.874]
[1641000161085,40.23004413,174.23,174.17,7.874]
[1641000161488,39.97004413,174.23,174.17,7.874]
[1641000162787,40.23004413,174.23,174.17,7.874]
[1641000163388,40.73004413,174.23,174.17,7.874]
[1641000163589,6.52990204,174.22,174.17,7.874]
[1641000163789,8.6135,174.21,174.17,7.874]
[1641000163990,6.52990204,174.22,174.17,7.874]
[1641000164990,9.113,174.22,174.17,7.874]
[1641000165197,9.113,174.22,174.17,4.734]
[1641000165394,9.113,174.22,174.17,0.004]
[1641000165600,9.373,174.22,174.17,0.004]
[1641000165796,9.373,174.22,174.07,0.2585]
[1641000165996,6.53013401,174.21,174.07,0.2585]
[1641000166195,6.53013401,174.21,174.07,8.6159]
[1641000166196,35.24953401,174.21,174.07,8.6159]
[1641000166395,7.29013401,174.21,174.04,523.85173234]
[1641000167197,30.37612191,174.2,174.04,523.85173234]
[1641000167398,25.97824389,174.11,174.04,523.85173234]
[1641000167600,26.23824389,174.11,174.04,523.85173234]
[1641000168297,34.85704389,174.11,174.04,487.54953237]
[1641000168498,34.85704389,174.11,173.91,0.5]
[1641000168698,34.85704389,174.11,173.96,0.5]
[1641000168898,35.35704389,174.11,173.96,0.5]
[1641000169300,35.35704389,174.11,173.93,1.8095]
[1641000169599,35.35704389,174.11,173.96,8.621]
[1641000169998,35.35704389,174.11,173.93,1.3095]
[1641000171005,35.35704389,174.11,173.93,1.5695]
[1641000171207,8.6188,174.11,173.94,2.93528462]
[1641000171412,2.583,174.18,173.94,14.99448254]
[1641000171413,8.6179,174.13,173.94,14.99448254]
[1641000171608,8.6179,174.13,173.95,1.42669368]
[1641000172007,8.6179,174.13,173.95,12.31919792]
[1641000172206,25.76930105,174.12,173.98,28.7255]
[1641000172606,25.76930105,174.12,173.98,29.4855]
[1641000172807,25.76930105,174.12,173.98,30.91219368]
[1641000173011,25.76930105,174.12,173.98,2.18669368]
[1641000174739,25.76930105,174.12,173.99,28.723]
[1641000174936,25.76930105,174.12,173.99,0.5]
[1641000175137,26.02930105,174.12,173.99,0.5]
[1641000175540,26.02930105,174.12,173.94,9.14355308]
[1641000175738,34.64780105,174.12,173.99,8.6192]
[1641000175936,34.64780105,174.12,173.99,9.1192]
[1641000176138,25.76930105,174.12,173.99,9.1192]
[1641000176538,25.76930105,174.12,173.99,9.3792]
[1641000178240,25.76930105,174.12,173.99,10.80589368]
[1641000178442,25.76930105,174.12,173.99,9.3792]
[1641000178642,25.76930105,174.12,173.99,8.8792]
[1641000178841,25.76930105,174.12,173.99,9.3792]
[1641000179442,25.76930105,174.12,173.99,8.8792]
[1641000179843,26.02930105,174.12,173.99,8.8792]
[1641000180044,25.76930105,174.12,173.99,8.8792]
[1641000180243,25.76930105,174.12,173.99,9.3792]
[1641000180445,25.76930105,174.12,173.99,9.1192]
[1641000180648,26.02930105,174.12,173.99,8.6192]
[1641000180843,25.76930105,174.12,173.99,9.1192]
[1641000181247,3.26641736,174.14,173.99,11.77979538]
[1641000181545,3.26641736,174.14,173.99,19.33054214]
[1641000181744,3.26641736,174.18,173.99,38.20774514]
[1641000181945,3.26641736,174.18,174.09,8.6126]
[1641000182346,28.21717057,174.17,174.09,8.8726]
[1641000182546,28.21717057,174.17,174.0,78.02]
[1641000182746,28.21717057,174.17,174.0,78.78]
[1641000183158,28.21717057,174.17,174.06,8.6161]
[1641000183646,28.21717057,174.17,174.06,8.8761]
[1641000184446,31.48358793,174.17,174.06,8.8761]
[1641000184649,40.09948793,174.17,174.06,8.8761]
[1641000185446,36.83307057,174.17,174.04,8.6166]
[1641000185649,37.09307057,174.17,174.04,8.6166]
[1641000186049,9.7984953,174.16,174.04,8.6166]
[1641000186250,9.7984953,174.16,174.03,480.70540149]
[1641000186449,25.77182433,174.13,174.03,480.70540149]
[1641000186849,26.03182433,174.13,174.03,480.96540149]
[1641000187650,34.38962433,174.13,174.03,480.96540149]
[1641000187950,34.38962433,174.13,174.03,480.70540149]
[1641000189452,34.64962433,174.13,174.03,480.70540149]
[1641000189652,34.38962433,174.13,174.03,480.70540149]
[1641000189853,35.14962433,174.13,174.03,480.70540149]
[1641000190053,9.79968207,174.12,174.03,480.70540149]
[1641000190453,8.6204,174.08,174.03,480.70540149]
[1641000190655,28.28441858,174.09,174.03,480.70540149]
[1641000191154,28.54441858,174.09,174.03,480.70540149]
[1641000192052,28.54441858,174.09,173.96,74.0328]
[1641000192252,28.54441858,174.09,173.96,0.76]
[1641000192652,28.28441858,174.09,174.0,8.6191]
[1641000193082,28.28441858,174.09,174.0,8.8791]
[1641000193455,8.6186,174.12,174.0,8.8791]
[1641000194055,8.8786,174.12,174.0,8.8791]
[1641000194453,25.88897228,174.11,174.0,8.8791]
[1641000195454,8.8786,174.12,174.0,8.8791]
[1641000195654,0.26,174.12,174.0,8.8791]
[1641000195857,8.8775,174.14,174.0,9.3791]
[1641000196056,8.6175,174.14,174.0,9.3791]
[1641000196456,27.88357435,174.13,174.0,9.3791]
[1641000199175,8.6175,174.14,174.0,9.3791]
[1641000199375,11.88291736,174.16,174.0,9.3791]
[1641000199574,12.14291736,174.16,174.0,9.3791]
[1641000200898,11.88291736,174.16,174.0,10.714]
[1641000201508,8.6165,174.16,174.0,10.714]
[1641000203507,24.62144263,174.17,174.0,10.454]
[1641000203905,25.12144263,174.17,174.0,10.454]
[1641000204308,9.79910678,174.16,174.0,10.454]
[1641000204805,30.6044112,174.11,174.0,10.454]
[1641000205204,8.6182,174.12,174.0,10.454]
[1641000205406,0.26,174.12,174.0,10.454]
[1641000205903,0.26,174.14,174.0,10.454]
[1641000206104,23.21584876,174.16,174.0,10.454]
[1641000206304,23.21584876,174.16,174.0,10.714]
[1641000206604,23.47584876,174.16,174.0,10.714]
[1641000207403,8.6171,174.14,174.01,1.10264787]
[1641000207604,23.21584876,174.16,174.02,28.7192]
[1641000208003,23.21584876,174.16,174.02,29.4792]
[1641000208603,23.21584876,174.16,174.07,8.6156]
[1641000209006,23.21584876,174.16,174.03,77.6633]
[1641000209204,23.21584876,174.16,174.03,78.4233]
[1641000209705,31.83204876,174.16,174.06,8.6162]
[1641000210105,31.83204876,174.16,174.06,8.8762]
[1641000211008,23.21584876,174.16,174.06,8.8762]
[1641000211411,1.62679829,174.17,174.06,8.8762]
[1641000211809,2.333395,174.16,174.06,8.8762]
[1641000212414,33.3989682,174.16,174.06,8.8762]
[1641000215215,33.3989682,174.16,174.04,8.617]
[1641000215416,35.28576649,174.16,174.03,2.4767]
[1641000215616,35.78576649,174.16,174.03,2.4767]
[1641000216016,1.62679829,174.13,174.03,2.4767]
[1641000216316,25.99498503,174.12,174.0,8.6188]
[1641000216518,26.25498503,174.12,174.0,8.8788]
[1641000216718,26.25498503,174.12,174.0,9.3788]
[1641000216925,27.88178332,174.12,174.0,9.3788]
[1641000217121,27.88178332,174.12,174.0,9.1188]
[1641000217521,8.6189,174.11,174.0,9.1188]
[1641000218220,8.6189,174.11,174.0,9.3788]
[1641000218619,27.62178332,174.12,174.0,9.1188]
[1641000219021,28.38178332,174.12,174.0,9.1188]
[1641000220021,37.00028332,174.12,174.0,9.1188]
[1641000221125,36.74028332,174.12,174.0,9.1188]
[1641000221725,36.24028332,174.12,174.0,9.1188]
[1641000222827,36.24028332,174.12,174.0,9.3788]
[1641000223224,27.62178332,174.12,174.0,9.3788]
[1641000223625,25.99498503,174.12,174.0,9.3788]
[1641000224225,27.62178332,174.12,174.0,9.3788]
[1641000225228,25.99498503,174.12,174.0,9.3788]
[1641000225827,27.62178332,174.12,174.0,9.3788]
[1641000226228,1.62679829,174.11,174.0,9.3788]
[1641000227755,27.62178332,174.12,174.0,9.3788]
[1641000230360,25.99498503,174.12,174.0,9.3788]
[1641000231558,27.62178332,174.12,174.0,9.3788]
[1641000231959,28.12178332,174.12,174.0,9.3788]
[1641000232561,36.73998332,174.12,174.0,9.3788]
[1641000233261,1.62679829,174.11,174.0,9.3788]
[1641000235165,1.62679829,174.1,174.0,9.1188]
[1641000235370,1.62679829,174.1,174.0,0.5]
[1641000235765,1.62679829,174.08,173.99,0.5]
[1641000235965,23.38749261,174.07,173.96,3.0045]
[1641000236565,23.38749261,174.07,174.0,8.6194]
[1641000237165,23.38749261,174.07,173.96,3.0045]
[1641000237665,23.38749261,174.07,173.99,8.6199]
[1641000238969,23.38749261,174.07,173.99,8.8799]
[1641000241170,23.38749261,174.07,173.99,8.6199]
[1641000242571,23.38749261,174.07,173.99,8.8799]
[1641000245675,23.38749261,174.07,173.94,512.33669153]
[1641000245676,32.26799261,174.07,173.94,512.33669153]
[1641000246077,1.34503745,174.06,173.94,512.33669153]
[1641000246476,2.10503745,174.06,173.83,97.0088]
[1641000246679,8.6244,174.0,173.86,8.6258]
[1641000246876,23.22510652,173.99,173.83,98.43549368]
[1641000247074,23.48510652,173.99,173.83,97.0088]
[1641000247278,23.98510652,173.99,173.83,97.0088]
[1641000247479,1.62679829,173.98,173.83,2.5088]
[1641000247775,1.62679829,173.98,173.83,8.627]
[1641000247977,2.38679829,173.98,173.83,8.627]
[1641000248175,2.38679829,173.98,173.81,10.06028202]
[1641000248375,2.38679829,173.98,173.78,1.42669368]
[1641000248580,3.73183574,173.98,173.78,1.42669368]
[1641000248776,8.6285,173.91,173.8,8.6286]
[1641000248975,1.62679829,173.95,173.8,8.6286]
[1641000249376,27.53633684,173.94,173.8,8.6286]
[1641000249976,8.628,173.92,173.8,8.8886]
[1641000250176,8.628,173.92,173.8,9.3886]
[1641000250777,8.628,173.92,173.8,8.8886]
[1641000250977,8.628,173.92,173.8,9.3886]
[1641000251180,8.628,173.92,173.8,9.1286]
[1641000251380,8.628,173.92,173.8,0.5]
[1641000251577,8.888,173.92,173.79,8.6292]
[1641000251978,8.888,173.92,173.75,160.738]
[1641000252181,8.888,173.92,173.75,161.238]
[1641000252379,8.888,173.92,173.75,162.66469368]
[1641000253382,9.388,173.92,173.75,162.66469368]
[1641000253582,9.388,173.92,173.78,8.6297]
[1641000253785,9.388,173.92,173.75,162.66469368]
[1641000253982,9.388,173.92,173.75,158.1196]
[1641000253983,10.73303745,173.92,173.75,158.1196]
[1641000254186,10.73303745,173.92,173.74,538.58503158]
[1641000254386,1.62679829,173.91,173.74,538.58503158]
[1641000254586,1.88679829,173.91,173.74,538.58503158]
[1641000254785,22.46127073,173.9,173.74,538.58503158]
[1641000254983,23.22127073,173.9,173.74,538.58503158]